fUSD/lending_fUSD_20260529
["ID","MTS","AMOUNT","RATE_DAILY","PERIOD"]
[423291923,1780035032000,-8998.84510363,0.00012573,2]
[423291924,1780035032000,-295.8842679,0.00012573,2]
[423291925,1780035032000,-500.0,0.00012673,2]
[423291921,1780035032000,-308.93914437,0.00012573,2]
[423291932,1780035032000,-1200.0,0.00013397,2]
[423291947,1780035032000,-169.52064898,0.00013531,2]
[423291946,1780035032000,-150.0,0.00013488,2]
[423291949,1780035032000,-150.0,0.00013664,2]
[423291950,1780035032000,-153.47342782,0.00013699,2]
[423291986,1780035032000,-150.0,0.00014369,2]
[423291987,1780035032000,-150.0,0.00014387,2]
[423291985,1780035032000,-374.13,0.00014316,2]
[423291981,1780035032000,-1516.04,0.000143,2]
[423291984,1780035032000,-200.0,0.000143,5]
[423291979,1780035032000,-150.0,0.00014281,2]
[423291988,1780035032000,-150.0,0.00014387,2]
[423291977,1780035032000,-150.0,0.00014193,2]
[423291975,1780035032000,-150.0,0.00014105,2]
[423291974,1780035032000,-150.0,0.00014087,2]
[423291961,1780035032000,-300.0,0.00014028,2]
[423291966,1780035032000,-189.78132957,0.00014028,2]
[423291983,1780035032000,-900.0,0.000143,5]
[423291962,1780035032000,-300.0,0.00014028,2]
[423291967,1780035032000,-300.0,0.00014028,2]
[423291951,1780035032000,-150.0,0.00013752,2]
[423291954,1780035032000,-150.0,0.00013787,2]
[423291953,1780035032000,-150.0,0.00013787,2]
[423291952,1780035032000,-150.0,0.00013787,2]
[423291956,1780035032000,-150.0,0.00013928,2]
[423291955,1780035032000,-150.0,0.0001384,2]
[423291959,1780035032000,-250.0,0.00014,2]
[423291971,1780035032000,-150.0,0.00014087,2]
[423291969,1780035032000,-150.0,0.00014087,2]
[423291964,1780035032000,-300.0,0.00014028,2]
[423291960,1780035032000,-150.0,0.00014017,2]
[423291958,1780035032000,-150.0,0.00013987,2]
[423292006,1780035033000,-500.0,0.00014452,2]
[423292004,1780035033000,-500.0,0.00014452,2]
[423292003,1780035033000,-500.0,0.00014452,2]
[423292005,1780035033000,-500.0,0.00014452,2]
[423292009,1780035033000,-500.0,0.00014452,2]
[423292007,1780035033000,-500.0,0.00014452,2]
[423292011,1780035033000,-294.68372899,0.00014452,2]
[423292002,1780035033000,-500.0,0.00014452,2]
[423292012,1780035033000,-150.0,0.00014457,2]
[423292008,1780035033000,-500.0,0.00014452,2]
[423291999,1780035033000,-500.0,0.00014452,2]
[423291993,1780035033000,-623.19531483,0.00014452,2]
[423291997,1780035033000,-500.0,0.00014452,2]
[423291996,1780035033000,-500.0,0.00014452,2]
[423291995,1780035033000,-500.0,0.00014452,2]
[423291994,1780035033000,-500.0,0.00014452,2]
[423292001,1780035033000,-500.0,0.00014452,2]
[423291991,1780035033000,-500.0,0.000144,5]
[423291992,1780035033000,-500.0,0.00014452,2]
[423292000,1780035033000,-500.0,0.00014452,2]
[423291990,1780035033000,-1900.0,0.000144,5]
[423291989,1780035033000,-150.0,0.00014387,2]
[423292010,1780035033000,-500.0,0.00014452,2]
[423291998,1780035033000,-500.0,0.00014452,2]
[423292014,1780035033000,-2900.0,0.000145,5]
[423292013,1780035033000,-150.0,0.00014487,2]
[423292024,1780035033000,-204.56816824,0.00014647,2]
[423292016,1780035033000,-150.0,0.00014546,2]
[423292040,1780035033000,-216.6490255,0.00014694,2]
[423292039,1780035033000,-837.7616763,0.00014694,2]
[423292038,1780035033000,-985.96273174,0.00014694,2]
[423292035,1780035033000,-699.49483532,0.00014691,2]
[423292036,1780035033000,-462.19315992,0.00014691,2]
[423292034,1780035033000,-824.12062369,0.00014691,2]
[423292033,1780035033000,-637.20601894,0.00014691,2]
[423292031,1780035033000,-609.28676897,0.00014691,2]
[423292028,1780035033000,-150.0,0.00014687,2]
[423292032,1780035033000,-500.91157275,0.00014691,2]
[423292030,1780035033000,-3027.42302851,0.00014691,2]
[423292037,1780035033000,-1266.78702041,0.00014691,2]
[423292027,1780035033000,-150.0,0.00014687,2]
[423292026,1780035033000,-150.0,0.00014687,2]
[423292029,1780035033000,-414.13957149,0.00014691,2]
[423292025,1780035033000,-420.0,0.00014686,2]
[423292017,1780035033000,-2570.7235,0.00014577,2]
[423292022,1780035033000,-150.0,0.00014634,2]
[423292020,1780035033000,-3900.0,0.000146,5]
[423292023,1780035033000,-3638.64752176,0.00014647,2]
[423292021,1780035033000,-1100.0,0.000146,5]
[423292018,1780035033000,-350.0,0.00014591,2]
[423292019,1780035033000,-500.0,0.00014599,5]
[423292015,1780035033000,-800.0,0.000145,5]
[423292069,1780035039000,-500.0,0.00014789,2]
[423292068,1780035039000,-693.3,0.00014789,2]
[423292070,1780035039000,-500.0,0.00014789,2]
[423292066,1780035039000,-500.0,0.00014789,2]
[423292067,1780035039000,-502.6690024,0.00014789,2]
[423292063,1780035039000,-500.0,0.00014789,2]
[423292065,1780035039000,-500.0,0.00014789,2]
[423292071,1780035039000,-504.98,0.00014789,2]
[423292079,1780035039000,-500.0,0.0001479,2]
[423292073,1780035039000,-500.0,0.0001479,2]
[423292075,1780035039000,-500.0,0.0001479,2]
[423292074,1780035039000,-502.23541788,0.0001479,2]
[423292077,1780035039000,-500.0,0.0001479,2]
[423292080,1780035039000,-500.0,0.0001479,2]
[423292076,1780035039000,-500.0,0.0001479,2]
[423292060,1780035039000,-837.76167624,0.00014763,2]
[423292072,1780035039000,-500.0,0.0001479,2]
[423292064,1780035039000,-526.78798976,0.00014789,2]
[423292051,1780035039000,-619.66964846,0.00014699,2]
[423292061,1780035039000,-451.3172839,0.00014786,2]
[423292081,1780035039000,-500.0,0.0001479,2]
[423292045,1780035039000,-2212.38088017,0.00014694,2]
[423292044,1780035039000,-903.93718342,0.00014694,2]
[423292046,1780035039000,-226.41023567,0.00014699,2]
[423292047,1780035039000,-500.0,0.00014699,2]
[423292049,1780035039000,-500.0,0.00014699,2]
[423292048,1780035039000,-311.7580098,0.00014699,2]
[423292062,1780035039000,-837.76167624,0.00014786,2]
[423292050,1780035039000,-500.0,0.00014699,2]
[423292055,1780035039000,-350.0,0.00014704,2]
[423292057,1780035039000,-150.0,0.00014722,2]
[423292052,1780035039000,-303.70339235,0.00014699,2]
[423292053,1780035039000,-4900.0,0.000147,5]
[423292056,1780035039000,-837.76167624,0.00014717,2]
[423292058,1780035039000,-1680.0,0.00014737,2]
[423292059,1780035039000,-837.76167624,0.0001474,2]
[423292054,1780035039000,-1300.0,0.000147,5]
[423292083,1780035039000,-1033.59,0.0001479,2]
[423292078,1780035039000,-500.0,0.0001479,2]
[423292082,1780035039000,-399.82779555,0.0001479,2]
[423292105,1780035039000,-500.0,0.0001479,2]
[423292106,1780035039000,-500.0,0.0001479,2]
[423292112,1780035039000,-500.0,0.0001479,2]
[423292107,1780035039000,-500.0,0.0001479,2]
[423292110,1780035039000,-500.0,0.0001479,2]
[423292111,1780035039000,-500.0,0.0001479,2]
[423292109,1780035039000,-500.0,0.0001479,2]
[423292108,1780035039000,-288.28618426,0.0001479,2]
[423292113,1780035039000,-500.0,0.0001479,2]
[423292114,1780035039000,-500.0,0.0001479,2]
[423292117,1780035039000,-500.0,0.0001479,2]
[423292116,1780035039000,-500.0,0.0001479,2]
[423292118,1780035039000,-169.7783109,0.0001479,2]
[423292120,1780035039000,-500.0,0.0001479,2]
[423292122,1780035039000,-500.0,0.0001479,2]
[423292121,1780035039000,-500.0,0.0001479,2]
[423292084,1780035039000,-1033.59,0.0001479,2]
[423292103,1780035039000,-500.0,0.0001479,2]
[423292102,1780035039000,-500.0,0.0001479,2]
[423292115,1780035039000,-500.0,0.0001479,2]
[423292104,1780035039000,-500.0,0.0001479,2]
[423292101,1780035039000,-500.0,0.0001479,2]
[423292087,1780035039000,-1033.59,0.0001479,2]
[423292085,1780035039000,-1033.59,0.0001479,2]
[423292090,1780035039000,-599.79,0.0001479,2]
[423292119,1780035039000,-150.0,0.0001479,2]
[423292091,1780035039000,-599.79,0.0001479,2]
[423292089,1780035039000,-599.79,0.0001479,2]
[423292086,1780035039000,-1033.59,0.0001479,2]
[423292088,1780035039000,-1033.59,0.0001479,2]
[423292093,1780035039000,-599.79,0.0001479,2]
[423292096,1780035039000,-500.0,0.0001479,2]
[423292094,1780035039000,-599.79,0.0001479,2]
[423292097,1780035039000,-500.0,0.0001479,2]
[423292098,1780035039000,-500.0,0.0001479,2]
[423292099,1780035039000,-500.0,0.0001479,2]
[423292095,1780035039000,-500.0,0.0001479,2]
[423292092,1780035039000,-599.79,0.0001479,2]
[423292100,1780035039000,-500.0,0.0001479,2]
[423292161,1780035040000,-150.0,0.00014898,2]
[423292158,1780035040000,-25000.0,0.00014882,3]
[423292154,1780035040000,-25000.0,0.00014874,3]
[423292159,1780035040000,-25000.0,0.00014891,3]
[423292160,1780035040000,-25000.0,0.00014891,3]
[423292155,1780035040000,-451.3172839,0.00014877,2]
[423292153,1780035040000,-500.0,0.00014873,2]
[423292156,1780035040000,-163.0,0.0001488,2]
[423292162,1780035040000,-500.0,0.00014899,2]
[423292157,1780035040000,-2000.0,0.0001488,2]
[423292151,1780035040000,-500.0,0.00014873,2]
[423292172,1780035040000,-500.0,0.000149,2]
[423292173,1780035040000,-4004.0,0.000149,5]
[423292164,1780035040000,-500.0,0.00014899,2]
[423292163,1780035040000,-500.0,0.00014899,2]
[423292167,1780035040000,-500.0,0.00014899,7]
[423292166,1780035040000,-500.0,0.00014899,2]
[423292169,1780035040000,-25000.0,0.000149,3]
[423292168,1780035040000,-504.98,0.00014899,2]
[423292171,1780035040000,-349.73930563,0.000149,3]
[423292175,1780035040000,-1756.05203343,0.000149,2]
[423292174,1780035040000,-451.3172839,0.000149,2]
[423292176,1780035040000,-25000.0,0.000149,3]
[423292152,1780035040000,-500.0,0.00014873,2]
[423292165,1780035040000,-693.3,0.00014899,2]
[423292150,1780035040000,-504.98,0.00014864,2]
[423292130,1780035040000,-500.0,0.0001479,2]
[423292146,1780035040000,-500.0,0.00014864,2]
[423292123,1780035040000,-502.42771557,0.0001479,2]
[423292125,1780035040000,-500.0,0.0001479,2]
[423292127,1780035040000,-500.0,0.0001479,2]
[423292124,1780035040000,-500.0,0.0001479,2]
[423292126,1780035040000,-500.0,0.0001479,2]
[423292128,1780035040000,-500.0,0.0001479,2]
[423292129,1780035040000,-500.0,0.0001479,2]
[423292184,1780035040000,-2000.0,0.0001492,2]
[423292131,1780035040000,-1500000.0,0.00014791,2]
[423292139,1780035040000,-569.0,0.00014809,2]
[423292132,1780035040000,-500.0,0.00014794,2]
[423292138,1780035040000,-837.76167624,0.00014808,2]
[423292135,1780035040000,-900.0,0.000148,5]
[423292133,1780035040000,-500.0,0.00014794,2]
[423292134,1780035040000,-500.0,0.00014794,2]
[423292136,1780035040000,-200.0,0.000148,5]
[423292137,1780035040000,-451.3172839,0.00014808,2]
[423292140,1780035040000,-150.0,0.0001481,2]
[423292142,1780035040000,-451.3172839,0.00014831,2]
[423292141,1780035040000,-500.0,0.00014829,6]
[423292144,1780035040000,-500.0,0.00014864,2]
[423292143,1780035040000,-451.3172839,0.00014854,2]
[423292145,1780035040000,-500.0,0.00014864,2]
[423292148,1780035040000,-500.0,0.00014864,2]
[423292149,1780035040000,-529.19931579,0.00014864,2]
[423292147,1780035040000,-693.3,0.00014864,2]
[423292186,1780035040000,-343.0,0.00014959,2]
[423292170,1780035040000,-10000.0,0.000149,2]
[423292177,1780035040000,-900.0,0.000149,5]
[423292218,1780035040000,-500.0,0.00014999,2]
[423292215,1780035040000,-500.0,0.00014998,2]
[423292220,1780035040000,-500.0,0.00014999,2]
[423292222,1780035040000,-500.0,0.00014999,2]
[423292221,1780035040000,-500.0,0.00014999,2]
[423292219,1780035040000,-503.8437914,0.00014999,2]
[423292223,1780035040000,-500.0,0.00014999,2]
[423292224,1780035040000,-186.29457933,0.00014999,2]
[423292225,1780035040000,-500.0,0.00014999,2]
[423292228,1780035040000,-500.0,0.00014999,2]
[423292231,1780035040000,-500.0,0.00014999,2]
[423292235,1780035040000,-693.3,0.00014999,2]
[423292233,1780035040000,-693.3,0.00014999,2]
[423292229,1780035040000,-500.0,0.00014999,2]
[423292227,1780035040000,-500.0,0.00014999,2]
[423292236,1780035040000,-693.3,0.00014999,2]
[423292238,1780035040000,-693.3,0.00014999,2]
[423292230,1780035040000,-500.0,0.00014999,2]
[423292234,1780035040000,-693.3,0.00014999,2]
[423292232,1780035040000,-517.97558109,0.00014999,2]
[423292237,1780035040000,-693.3,0.00014999,2]
[423292240,1780035040000,-693.3,0.00014999,2]
[423292239,1780035040000,-693.3,0.00014999,2]
[423292178,1780035040000,-200.0,0.000149,5]
[423292242,1780035040000,-693.3,0.00014999,2]
[423292217,1780035040000,-500.0,0.00014999,2]
[423292216,1780035040000,-500.0,0.00014999,2]
[423292241,1780035040000,-693.3,0.00014999,2]
[423292214,1780035040000,-500.0,0.00014998,2]
[423292226,1780035040000,-500.0,0.00014999,2]
[423292182,1780035040000,-19496.31542711,0.000149,2]
[423292180,1780035040000,-485.78955058,0.000149,2]
[423292188,1780035040000,-1328.6251868,0.00014962,2]
[423292196,1780035040000,-2000.0,0.0001497,2]
[423292193,1780035040000,-3326.1670387,0.00014962,2]
[423292197,1780035040000,-500.0,0.00014972,2]
[423292195,1780035040000,-6588.4076884,0.00014962,2]
[423292198,1780035040000,-500.0,0.00014972,2]
[423292190,1780035040000,-5632.4913847,0.00014962,2]
[423292199,1780035040000,-500.0,0.00014972,2]
[423292201,1780035040000,-151.46,0.00014985,2]
[423292179,1780035040000,-3636.5302491,0.000149,2]
[423292202,1780035040000,-150.0,0.00014986,2]
[423292203,1780035040000,-163.2636897,0.00014986,2]
[423292205,1780035040000,-194.88830757,0.00014986,2]
[423292204,1780035040000,-150.0,0.00014986,2]
[423292206,1780035040000,-220.07963451,0.00014986,2]
[423292211,1780035040000,-599.79,0.00014998,2]
[423292213,1780035040000,-500.0,0.00014998,2]
[423292210,1780035040000,-1033.59,0.00014998,2]
[423292212,1780035040000,-500.0,0.00014998,2]
[423292209,1780035040000,-500.0,0.00014998,2]
[423292207,1780035040000,-262.47046688,0.00014986,2]
[423292208,1780035040000,-156.986975,0.00014997,2]
[423292200,1780035040000,-624.02,0.00014985,2]
[423292275,1780035041000,-504.98,0.00014999,2]
[423292282,1780035041000,-504.98,0.00014999,2]
[423292284,1780035041000,-504.98,0.00014999,2]
[423292274,1780035041000,-504.98,0.00014999,2]
[423292285,1780035041000,-504.98,0.00014999,2]
[423292273,1780035041000,-504.98,0.00014999,2]
[423292276,1780035041000,-504.98,0.00014999,2]
[423292277,1780035041000,-504.98,0.00014999,2]
[423292269,1780035041000,-504.98,0.00014999,2]
[423292278,1780035041000,-504.98,0.00014999,2]
[423292283,1780035041000,-504.98,0.00014999,2]
[423292294,1780035041000,-500.0,0.00014999,2]
[423292286,1780035041000,-504.98,0.00014999,2]
[423292292,1780035041000,-500.0,0.00014999,2]
[423292287,1780035041000,-504.98,0.00014999,2]
[423292290,1780035041000,-505.14683529,0.00014999,2]
[423292289,1780035041000,-504.98,0.00014999,2]
[423292288,1780035041000,-504.98,0.00014999,2]
[423292293,1780035041000,-500.0,0.00014999,2]
[423292291,1780035041000,-500.0,0.00014999,2]
[423292296,1780035041000,-500.0,0.00014999,2]
[423292272,1780035041000,-504.98,0.00014999,2]
[423292300,1780035041000,-512.27479317,0.00014999,2]
[423292281,1780035041000,-504.98,0.00014999,2]
[423292267,1780035041000,-602.12691317,0.00014999,11]
[423292257,1780035041000,-500.0,0.00014999,2]
[423292270,1780035041000,-504.98,0.00014999,2]
[423292301,1780035041000,-1033.59,0.00014999,2]
[423292250,1780035041000,-693.3,0.00014999,2]
[423292243,1780035041000,-693.3,0.00014999,2]
[423292244,1780035041000,-693.3,0.00014999,2]
[423292249,1780035041000,-693.3,0.00014999,2]
[423292247,1780035041000,-693.3,0.00014999,2]
[423292245,1780035041000,-693.3,0.00014999,2]
[423292248,1780035041000,-693.3,0.00014999,2]
[423292246,1780035041000,-693.3,0.00014999,2]
[423292252,1780035041000,-693.3,0.00014999,2]
[423292258,1780035041000,-500.0,0.00014999,2]
[423292261,1780035041000,-500.0,0.00014999,2]
[423292254,1780035041000,-500.0,0.00014999,2]
[423292253,1780035041000,-693.4996255,0.00014999,2]
[423292251,1780035041000,-693.3,0.00014999,2]
[423292255,1780035041000,-500.0,0.00014999,2]
[423292256,1780035041000,-500.0,0.00014999,2]
[423292260,1780035041000,-500.0,0.00014999,2]
[423292259,1780035041000,-500.0,0.00014999,2]
[423292262,1780035041000,-500.0,0.00014999,2]
[423292264,1780035041000,-500.0,0.00014999,8]
[423292266,1780035041000,-500.0,0.00014999,10]
[423292268,1780035041000,-504.98,0.00014999,2]
[423292263,1780035041000,-249.66568301,0.00014999,2]
[423292265,1780035041000,-500.0,0.00014999,9]
[423292271,1780035041000,-504.98,0.00014999,2]
[423292304,1780035041000,-1033.59,0.00014999,2]
[423292295,1780035041000,-500.0,0.00014999,2]
[423292298,1780035041000,-500.0,0.00014999,2]
[423292339,1780035041000,-599.79,0.00014999,2]
[423292341,1780035041000,-599.79,0.00014999,2]
[423292340,1780035041000,-599.79,0.00014999,2]
[423292346,1780035041000,-500.0,0.00014999,2]
[423292347,1780035041000,-500.0,0.00014999,2]
[423292344,1780035041000,-500.0,0.00014999,2]
[423292345,1780035041000,-500.0,0.00014999,2]
[423292343,1780035041000,-500.0,0.00014999,2]
[423292342,1780035041000,-599.98863491,0.00014999,2]
[423292348,1780035041000,-500.0,0.00014999,2]
[423292350,1780035041000,-500.0,0.00014999,2]
[423292337,1780035041000,-599.79,0.00014999,2]
[423292352,1780035041000,-500.0,0.00014999,2]
[423292351,1780035041000,-500.0,0.00014999,2]
[423292349,1780035041000,-500.0,0.00014999,2]
[423292353,1780035041000,-500.0,0.00014999,2]
[423292356,1780035041000,-500.0,0.00014999,2]
[423292354,1780035041000,-500.0,0.00014999,2]
[423292357,1780035041000,-500.0,0.00014999,2]
[423292355,1780035041000,-500.0,0.00014999,2]
[423292362,1780035041000,-500.0,0.00014999,2]
[423292361,1780035041000,-406.0981632,0.00014999,2]
[423292359,1780035041000,-242.01918433,0.00014999,2]
[423292360,1780035041000,-500.0,0.00014999,2]
[423292358,1780035041000,-500.0,0.00014999,2]
[423292338,1780035041000,-599.79,0.00014999,2]
[423292303,1780035041000,-1033.59,0.00014999,2]
[423292334,1780035041000,-599.79,0.00014999,2]
[423292335,1780035041000,-599.79,0.00014999,2]
[423292302,1780035041000,-1033.59,0.00014999,2]
[423292297,1780035041000,-500.0,0.00014999,2]
[423292299,1780035041000,-500.0,0.00014999,2]
[423292305,1780035041000,-1033.59,0.00014999,2]
[423292307,1780035041000,-1033.59,0.00014999,2]
[423292308,1780035041000,-1033.59,0.00014999,2]
[423292322,1780035041000,-1033.59,0.00014999,2]
[423292317,1780035041000,-1033.59,0.00014999,2]
[423292323,1780035041000,-1033.59,0.00014999,2]
[423292311,1780035041000,-1033.59,0.00014999,2]
[423292319,1780035041000,-1033.59,0.00014999,2]
[423292306,1780035041000,-1033.59,0.00014999,2]
[423292313,1780035041000,-1033.59,0.00014999,2]
[423292315,1780035041000,-1033.59,0.00014999,2]
[423292333,1780035041000,-599.79,0.00014999,2]
[423292328,1780035041000,-599.79,0.00014999,2]
[423292332,1780035041000,-599.79,0.00014999,2]
[423292336,1780035041000,-599.79,0.00014999,2]
[423292329,1780035041000,-599.79,0.00014999,2]
[423292331,1780035041000,-599.79,0.00014999,2]
[423292330,1780035041000,-599.79,0.00014999,2]
[423292327,1780035041000,-599.79,0.00014999,2]
[423292325,1780035041000,-1033.73424159,0.00014999,2]
[423292324,1780035041000,-1033.59,0.00014999,2]
[423292326,1780035041000,-599.79,0.00014999,2]
[423292378,1780035042000,-500.0,0.00014999,2]
[423292375,1780035042000,-500.0,0.00014999,2]
[423292382,1780035042000,-300.0,0.00014999,2]
[423292374,1780035042000,-500.0,0.00014999,2]
[423292376,1780035042000,-500.0,0.00014999,2]
[423292377,1780035042000,-500.0,0.00014999,2]
[423292373,1780035042000,-500.0,0.00014999,2]
[423292372,1780035042000,-500.0,0.00014999,2]
[423292366,1780035042000,-500.0,0.00014999,2]
[423292364,1780035042000,-500.0,0.00014999,2]
[423292363,1780035042000,-500.0,0.00014999,2]
[423292368,1780035042000,-398.17973108,0.00014999,2]
[423292370,1780035042000,-500.0,0.00014999,2]
[423292367,1780035042000,-500.0,0.00014999,2]
[423292369,1780035042000,-500.0,0.00014999,2]
[423292365,1780035042000,-500.0,0.00014999,2]
[423292380,1780035042000,-500.0,0.00014999,2]
[423292371,1780035042000,-500.0,0.00014999,2]
[423292381,1780035042000,-552.56635363,0.00014999,2]
[423292386,1780035042000,-300.0,0.00014999,2]
[423292384,1780035042000,-300.0,0.00014999,2]
[423292379,1780035042000,-500.0,0.00014999,2]
[423292401,1780035042000,-634.54597673,0.000149,2]
[423292402,1780035042000,-1948.97489507,0.00015,2]
[423292397,1780035042000,-878009.92697863,0.00015,2]
[423292398,1780035042000,-351.46096074,0.00015,2]
[423292399,1780035042000,-984174.84761241,0.00015,2]
[423292396,1780035042000,-3148.85513317,0.00015,14]
[423292395,1780035042000,-2944721.49920218,0.00015,2]
[423292390,1780035042000,-666.0,0.00014999,2]
[423292400,1780035042000,-509.4828208,0.00015,2]
[423292389,1780035042000,-300.0,0.00014999,2]
[423292391,1780035042000,-300.0,0.00014999,2]
[423292393,1780035042000,-666.0,0.00014999,2]
[423292388,1780035042000,-300.0,0.00014999,2]
[423292394,1780035042000,-4340.0,0.00015,5]
[423292392,1780035042000,-300.0,0.00014999,2]
[423292387,1780035042000,-300.0,0.00014999,2]
[423292385,1780035042000,-666.0,0.00014999,2]
[423292383,1780035042000,-280.44796258,0.00014999,2]
[423292404,1780035044000,-837.76167624,0.00014831,2]
[423292405,1780035044000,-2000.0,0.000149,2]
[423292407,1780035044000,-737.04669316,0.00015,2]
[423292403,1780035044000,-198087.6231,0.000146,2]
[423292406,1780035044000,-167499.61522347,0.00015,2]
[423292503,1780035046000,-424.71669306,0.00015,2]
[423292502,1780035046000,-1036.92,0.00015,2]
[423292501,1780035046000,-163.0,0.0001488,2]
[423292504,1780035046000,-577.09443144,0.00015,2]
[423292509,1780035272000,791.61,0.00027125,120]
[423292508,1780035272000,791.61,0.00024865,120]
[423292512,1780035313000,555.0,0.00025066,120]
[423292513,1780035314000,555.0,0.00026319,120]
[423292514,1780035316000,555.0,0.00027635,120]
[423292515,1780035333000,179.0,0.00024026,120]
[423292516,1780035334000,179.0,0.00025227,120]
[423292517,1780035335000,179.0,0.00026488,120]
[423292518,1780035337000,179.0,0.00027813,120]
[423292519,1780035384000,153.21273012,0.00026087,120]
[423292520,1780035408000,490.176,0.00028,120]
[423292527,1780035423000,407.67,0.00028,120]
[423292534,1780035609000,333.0,0.0002551,120]
[423292535,1780035612000,333.0,0.00026786,120]
[423292536,1780035628000,181.0,0.00024254,120]
[423292544,1780035738000,77978.20749752,0.000107,2]
[423292554,1780035907000,233.0,0.00025411,120]
[423292555,1780035908000,233.0,0.00026682,120]
[423292556,1780035910000,233.0,0.00028016,120]
[423292563,1780035983000,163.5,9.042e-05,2]
[423292571,1780036030000,-429.24742987,0.0001184,2]
[423292572,1780036071000,1125.03,0.00024865,120]
[423292573,1780036072000,1125.03,0.00027125,120]
[423292574,1780036088000,154.7028,7.945e-05,2]
[423292575,1780036141000,1000.0,0.0002808,120]
[423292577,1780036214000,163.0,0.00025526,120]
[423292578,1780036215000,163.0,0.00026802,120]
[423292617,1780036232000,-500.0,0.00012752,2]
[423292599,1780036232000,-151.86712148,0.00012,2]
[423292609,1780036232000,-500.0,0.00012752,2]
[423292608,1780036232000,-500.0,0.00012752,2]
[423292606,1780036232000,-500.0,0.00012752,2]
[423292600,1780036232000,-250.0,0.00012355,2]
[423292596,1780036232000,-70.75257013,0.0001184,2]
[423292601,1780036232000,-347.0,0.00012752,2]
[423292597,1780036232000,-183.11199579,0.000119,2]
[423292605,1780036232000,-150.0,0.00012752,2]
[423292603,1780036232000,-1200.0,0.00012752,2]
[423292604,1780036232000,-300.0,0.00012752,2]
[423292602,1780036232000,-300.0,0.00012752,2]
[423292618,1780036232000,-500.0,0.00012752,2]
[423292595,1780036232000,-941.19919019,0.000118,2]
[423292610,1780036232000,-500.0,0.00012752,2]
[423292598,1780036232000,-9893.20471541,0.00012,2]
[423292612,1780036232000,-500.0,0.00012752,2]
[423292607,1780036232000,-500.0,0.00012752,2]
[423292628,1780036232000,-500.0,0.00012752,2]
[423292626,1780036232000,-500.0,0.00012752,2]
[423292629,1780036232000,-500.0,0.00012752,2]
[423292624,1780036232000,-500.0,0.00012752,2]
[423292625,1780036232000,-500.0,0.00012752,2]
[423292622,1780036232000,-500.0,0.00012752,2]
[423292623,1780036232000,-500.0,0.00012752,2]
[423292627,1780036232000,-500.0,0.00012752,2]
[423292619,1780036232000,-500.0,0.00012752,2]
[423292620,1780036232000,-500.0,0.00012752,2]
[423292614,1780036232000,-500.0,0.00012752,2]
[423292611,1780036232000,-500.0,0.00012752,2]
[423292615,1780036232000,-500.0,0.00012752,2]
[423292621,1780036232000,-500.0,0.00012752,2]
[423292616,1780036232000,-500.0,0.00012752,2]
[423292613,1780036232000,-500.0,0.00012752,2]